[Event "29th Czech Open-Rapid 2018"]
[Site "Pardubice"]
[Date "2018.07.19"]
[Round "6"]
[White "Sinauridze, Simons"]
[Black "Lushnikov, Evgeny"]
[Result "1-0"]
[ECO "B30"]
[WhiteElo "1962"]
[BlackElo "2234"]
[Annotator "NA"]
[PlyCount "165"]
[EventDate "2018.07.18"]
[EventType "swiss"]
[EventCountry "CZE"]
[SourceTitle "playchess.com"]
[Source "ChessBase"]
[SourceQuality "1"]
[TimeControl "900+10"]

1. e4 {[%emt 0:00:00]} c5 {[%emt 0:00:00]} 2. Nf3 {[%emt 0:00:00]} Nc6 {[%emt 0:00:00]} 3. Bb5 {[%emt 0:00:00]} d6 {[%emt 0:00:00]} 4. O-O {[%emt 0:00:06]} Bd7 {[%emt 0:00:00]} 5. c3 {[%emt 0:00:26]} Nf6 {[%emt 0:00:23]} 6. Re1 {[%emt 0:00:04]} a6 {[%emt 0:00:01]} 7. Ba4 {[%emt 0:00:05]} b5 {[%emt 0:00:02]} 8. Bc2 {[%emt 0:00:01]} Bg4 {[%emt 0:00:05]} 9. h3 {[%emt 0:00:13]} Bxf3 {[%emt 0:00:39]} 10. Qxf3 {[%emt 0:00:03]} e5 {[%emt 0:00:30]} 11. d3 {[%emt 0:00:22]} Be7 {[%emt 0:00:02]} 12. Nd2 {[%emt 0:00:05]} O-O {[%emt 0:00:12]} 13. Nf1 {[%emt 0:00:02]} d5 {[%emt 0:00:37]} 14. exd5 {[%emt 0:00:25]} Qxd5 {[%emt 0:00:04]} 15. Qg3 {[%emt 0:00:06]} Kh8 {[%emt 0:01:11]} 16. Ne3 {[%emt 0:00:25]} Qd7 {[%emt 0:00:09]} 17. Ng4 {[%emt 0:01:09]} Nxg4 {[%emt 0:01:39]} 18. hxg4 {[%emt 0:00:02]} f5 {[%emt 0:00:53]} 19. gxf5 {[%emt 0:00:10]} Qxf5 {[%emt 0:00:02]} 20. Re2 {[%emt 0:01:32]} Qh5 {[%emt 0:00:18]} 21. f3 {[%emt 0:00:32]} Rad8 {[%emt 0:00:54]} 22. Be3 {[%emt 0:00:09]} Rd6 {[%emt 0:01:49]} 23. Qh2 {[%emt 0:01:21]} Qxh2+ {[%emt 0:02:11]} 24. Kxh2 {[%emt 0:00:02]} Rdf6 {[%emt 0:00:01]} 25. Bg5 {[%emt 0:01:13]} R6f7 {[%emt 0:00:02]} 26. Bxe7 {[%emt 0:00:04]} Rxe7 {[%emt 0:00:01]} 27. Rae1 {[%emt 0:00:03]} g6 {[%emt 0:00:23]} 28. Re4 {[%emt 0:01:35]} Rfe8 29. a4 {[%emt 0:03:07]} Kg7 {[%emt 0:01:30]} 30. Kg3 {[%emt 0:00:05]} Kf6 {[%emt 0:00:05]} 31. Kf2 {[%emt 0:03:52]} Ke6 {[%emt 0:02:01]} 32. d4 {[%emt 0:01:15]} cxd4 {[%emt 0:00:10]} 33. cxd4 {[%emt 0:00:02]} Kd6 {[%emt 0:00:09]} 34. dxe5+ {[%emt 0:00:05]} Rxe5 {[%emt 0:00:02]} 35. axb5 {[%emt 0:00:15]} axb5 {[%emt 0:00:09]} 36. Bd3 {[%emt 0:01:47]} Kc5 {[%emt 0:02:06]} 37. Rc1+ {[%emt 0:00:11]} Kb6 {[%emt 0:00:31]} 38. Rce1 {[%emt 0:00:13]} b4 {[%emt 0:00:47]} 39. R1e2 {[%emt 0:00:01]} Rxe4 {[%emt 0:00:38]} 40. Bxe4 {[%emt 0:00:02]} Nd4 {[%emt 0:00:08]} 41. Rd2 {[%emt 0:00:03]} Kc5 {[%emt 0:00:16]} 42. Ke3 {[%emt 0:00:27]} Rd8 {[%emt 0:00:24]} 43. Rd3 {[%emt 0:00:17]} Kc4 {[%emt 0:00:46]} 44. Rd2 {[%emt 0:00:10]} b3 {[%emt 0:00:10]} 45. Rd3 {[%emt 0:00:09]} Rd6 {[%emt 0:00:12]} 46. Rc3+ {[%emt 0:00:02]} Kb4 {[%emt 0:00:01]} 47. Bd3 {[%emt 0:00:04]} Nc6 {[%emt 0:00:22]} 48. Rc4+ {[%emt 0:00:13]} Ka5 {[%emt 0:00:02]} 49. Rc5+ {[%emt 0:00:09]} Kb4 {[%emt 0:00:03]} 50. Rb5+ {[%emt 0:00:08]} Ka4 {[%emt 0:00:05]} 51. Rb6 {[%emt 0:00:03]} Re6+ {[%emt 0:00:19]} 52. Kd2 {[%emt 0:00:02]} Nd4 {[%emt 0:00:18]} 53. Rxe6 {[%emt 0:00:15]} Nxe6 {[%emt 0:00:01]} 54. Kc3 {[%emt 0:00:16]} Nf4 {[%emt 0:00:01]} 55. Bf1 {[%emt 0:00:06]} h5 {[%emt 0:00:27]} 56. g3 {[%emt 0:00:26]} Nd5+ {[%emt 0:00:16]} 57. Kd4 {[%emt 0:00:01]} Ne7 {[%emt 0:00:08]} 58. Ke5 {[%emt 0:00:21]} Nf5 {[%emt 0:00:03]} 59. g4 {[%emt 0:00:06]} Ne3 {[%emt 0:00:13]} 60. gxh5 {[%emt 0:00:10]} gxh5 {[%emt 0:00:03]} 61. Be2 {[%emt 0:00:13]} h4 {[%emt 0:00:03]} 62. Kf4 {[%emt 0:00:03]} Ng2+ {[%emt 0:00:29]} 63. Kg4 {[%emt 0:00:06]} Kb4 {[%emt 0:00:07]} 64. f4 {[%emt 0:00:16]} Kc5 {[%emt 0:00:06]} 65. f5 {[%emt 0:00:03]} Ne3+ {[%emt 0:00:10]} 66. Kg5 {[%emt 0:00:13]} Nd5 {[%emt 0:00:20]} 67. Kxh4 {[%emt 0:00:22]} Kd4 {[%emt 0:00:05]} 68. Kg5 {[%emt 0:00:05]} Ke5 {[%emt 0:00:08]} 69. Bc4 {[%emt 0:00:13]} Nf6 {[%emt 0:00:16]} 70. Bxb3 {[%emt 0:00:07]} Ne4+ {[%emt 0:00:01]} 71. Kg6 {[%emt 0:00:05]} Nf6 {[%emt 0:00:08]} 72. Be6 {[%emt 0:00:05]} Ne4 {[%emt 0:00:09]} 73. b4 {[%emt 0:00:23]} Nd6 {[%emt 0:00:04]} 74. Bd7 {[%emt 0:00:09]} Ne4 {[%emt 0:00:14]} 75. b5 {[%emt 0:00:06]} Kd6 {[%emt 0:00:11]} 76. Bc6 {[%emt 0:00:08]} Nc5 {[%emt 0:00:00]} 77. f6 {[%emt 0:00:07]} Ne6 {[%emt 0:00:03]} 78. f7 {[%emt 0:00:18]} Ke7 {[%emt 0:00:03]} 79. b6 {[%emt 0:00:10]} Kd6 {[%emt 0:00:10]} 80. b7 {[%emt 0:00:11]} Kc7 {[%emt 0:00:01]} 81. Bf3 {[%emt 0:00:09]} Nf8+ {[%emt 0:00:12]} 82. Kg7 {[%emt 0:00:03]} Ne6+ {[%emt 0:00:01]} 83. Kg8 {[%emt 0:00:03]} 1-0

[Event "29th Czech Open-Rapid 2018"]
[Site "Pardubice"]
[Date "2018.07.19"]
[Round "6"]
[White "Nehyba, Martin"]
[Black "Bystrov, Sergej Mikhailovich"]
[Result "1/2-1/2"]
[ECO "B22"]
[WhiteElo "1947"]
[BlackElo "2121"]
[Annotator "NA"]
[PlyCount "95"]
[EventDate "2018.07.18"]
[EventType "swiss"]
[EventCountry "CZE"]
[SourceTitle "playchess.com"]
[Source "ChessBase"]
[SourceQuality "1"]
[TimeControl "900+10"]

1. e4 {[%emt 0:00:00]} c5 {[%emt 0:00:00]} 2. c3 {[%emt 0:00:03]} e5 {[%emt 0:00:14]} 3. Nf3 {[%emt 0:00:08]} Nc6 {[%emt 0:00:01]} 4. d4 {[%emt 0:00:47]} cxd4 {[%emt 0:00:04]} 5. cxd4 {[%emt 0:00:01]} exd4 {[%emt 0:00:02]} 6. Nxd4 {[%emt 0:00:04]} Nf6 {[%emt 0:00:05]} 7. Nc3 {[%emt 0:00:29]} Bb4 {[%emt 0:00:10]} 8. Bg5 {[%emt 0:00:52]} O-O {[%emt 0:02:20]} 9. Nxc6 {[%emt 0:00:22]} dxc6 {[%emt 0:00:40]} 10. Bd3 {[%emt 0:01:00]} h6 {[%emt 0:00:25]} 11. Bh4 {[%emt 0:00:07]} Be7 {[%emt 0:02:04]} 12. O-O {[%emt 0:00:11]} Nd7 {[%emt 0:00:08]} 13. Bg3 {[%emt 0:00:12]} Nc5 {[%emt 0:00:06]} 14. Bc2 {[%emt 0:00:01]} Be6 {[%emt 0:00:43]} 15. Qe2 {[%emt 0:01:10]} Qb6 {[%emt 0:01:50]} 16. e5 {[%emt 0:00:05]} Rad8 {[%emt 0:00:36]} 17. Rad1 {[%emt 0:00:07]} a5 {[%emt 0:00:18]} 18. Bb1 {[%emt 0:00:13]} Qb4 {[%emt 0:00:57]} 19. Qc2 {[%emt 0:00:23]} g6 {[%emt 0:00:04]} 20. Qc1 {[%emt 0:01:43]} Kg7 {[%emt 0:02:02]} 21. Bf4 {[%emt 0:02:44]} Rh8 {[%emt 0:00:11]} 22. Rxd8 {[%emt 0:01:44]} Bxd8 {[%emt 0:00:02]} 23. Rd1 {[%emt 0:00:01]} Be7 {[%emt 0:00:19]} 24. Bd2 {[%emt 0:00:09]} Qh4 {[%emt 0:01:37]} 25. Be3 {[%emt 0:02:39]} Na6 {[%emt 0:01:52]} 26. Be4 {[%emt 0:00:45]} Rd8 {[%emt 0:00:41]} 27. Rxd8 {[%emt 0:01:54]} Bxd8 {[%emt 0:00:01]} 28. g3 {[%emt 0:00:04]} Qh5 {[%emt 0:00:15]} 29. Qd2 {[%emt 0:00:01]} Be7 {[%emt 0:00:28]} 30. Ne2 {[%emt 0:00:01]} Bc5 {[%emt 0:00:57]} 31. Nf4 {[%emt 0:00:08]} Qxe5 {[%emt 0:00:06]} 32. Nxe6+ {[%emt 0:00:06]} Qxe6 {[%emt 0:00:28]} 33. Bxh6+ {[%emt 0:00:42]} Kh7 {[%emt 0:00:05]} 34. Qc3 {[%emt 0:00:53]} f6 {[%emt 0:00:31]} 35. Bd3 {[%emt 0:00:03]} Kxh6 {[%emt 0:00:08]} 36. Bxa6 {[%emt 0:00:01]} Qf5 {[%emt 0:00:14]} 37. Qd2+ {[%emt 0:00:11]} g5 {[%emt 0:00:02]} 38. Bd3 {[%emt 0:00:03]} Qe5 {[%emt 0:00:09]} 39. Bb1 {[%emt 0:00:14]} Qd4 {[%emt 0:00:04]} 40. Qc2 {[%emt 0:00:03]} Kg7 {[%emt 0:00:23]} 41. a3 Kf8 {[%emt 0:00:09]} 42. Ba2 {[%emt 0:01:14]} b5 {[%emt 0:00:09]} 43. Be6 {[%emt 0:00:08]} Ke7 {[%emt 0:00:12]} 44. Bb3 {[%emt 0:00:07]} Kd6 {[%emt 0:00:02]} 45. Qe2 {[%emt 0:00:11]} Kc7 {[%emt 0:00:09]} 46. a4 {[%emt 0:00:14]} bxa4 {[%emt 0:00:09]} 47. Bc2 {[%emt 0:00:02]} Kb6 {[%emt 0:00:09]} 48. Bd3 {[%emt 0:00:21]} 1/2-1/2

[Event "29th Czech Open-Rapid 2018"]
[Site "Pardubice"]
[Date "2018.07.19"]
[Round "6"]
[White "Balazec, Ludovit"]
[Black "Bueble, Joschua"]
[Result "1-0"]
[ECO "C05"]
[WhiteElo "1945"]
[BlackElo "1682"]
[Annotator "NA"]
[PlyCount "57"]
[EventDate "2018.07.18"]
[EventType "swiss"]
[EventCountry "CZE"]
[SourceTitle "playchess.com"]
[Source "ChessBase"]
[SourceQuality "1"]
[TimeControl "900+10"]

1. e4 {[%emt 0:00:00]} e6 {[%emt 0:00:00]} 2. d4 {[%emt 0:00:00]} d5 {[%emt 0:00:00]} 3. Nd2 {[%emt 0:00:00]} Nf6 {[%emt 0:00:00]} 4. e5 {[%emt 0:00:02]} Nfd7 {[%emt 0:00:00]} 5. f4 {[%emt 0:00:02]} c5 {[%emt 0:00:00]} 6. Ndf3 {[%emt 0:00:17]} Nc6 {[%emt 0:00:10]} 7. c3 {[%emt 0:00:05]} f6 {[%emt 0:00:21]} 8. g3 {[%emt 0:00:29]} fxe5 {[%emt 0:00:05]} 9. fxe5 {[%emt 0:00:30]} cxd4 {[%emt 0:00:11]} 10. cxd4 {[%emt 0:00:07]} Qb6 {[%emt 0:00:13]} 11. Bd3 {[%emt 0:00:43]} Bb4+ {[%emt 0:00:45]} 12. Kf1 {[%emt 0:00:04]} Be7 {[%emt 0:01:29]} 13. Kg2 {[%emt 0:00:05]} Nf8 {[%emt 0:02:10]} 14. h4 {[%emt 0:00:15]} Bd7 {[%emt 0:00:18]} 15. b3 {[%emt 0:01:04]} O-O-O {[%emt 0:00:29]} 16. Be3 {[%emt 0:00:53]} Be8 {[%emt 0:00:30]} 17. Ne2 {[%emt 0:00:55]} Bh5 {[%emt 0:01:00]} 18. Rf1 {[%emt 0:02:08]} Ba3 {[%emt 0:01:09]} 19. Qd2 {[%emt 0:02:05]} Ng6 {[%emt 0:01:48]} 20. Kh3 {[%emt 0:00:13]} Bb4 {[%emt 0:00:31]} 21. Qc1 {[%emt 0:00:59]} Nge7 {[%emt 0:00:30]} 22. a3 {[%emt 0:00:19]} Rdf8 {[%emt 0:01:16]} 23. g4 {[%emt 0:00:16]} Bg6 {[%emt 0:00:38]} 24. Bxg6 {[%emt 0:00:39]} Nxg6 {[%emt 0:00:04]} 25. axb4 {[%emt 0:00:05]} Qxb4 {[%emt 0:00:09]} 26. Qc3 {[%emt 0:00:42]} Qb5 {[%emt 0:00:15]} 27. Qc2 {[%emt 0:00:52]} Qb6 {[%emt 0:00:23]} 28. h5 {[%emt 0:00:18]} Ngxe5 {[%emt 0:00:15]} 29. Nxe5 {[%emt 0:00:02]} 1-0

[Event "29th Czech Open-Rapid 2018"]
[Site "Pardubice"]
[Date "2018.07.19"]
[Round "6"]
[White "Roskova, Katerina"]
[Black "Khmelev, Mikhail"]
[Result "1-0"]
[ECO "A40"]
[WhiteElo "1886"]
[BlackElo "1977"]
[Annotator "NA"]
[PlyCount "177"]
[EventDate "2018.07.18"]
[EventType "swiss"]
[EventCountry "CZE"]
[SourceTitle "playchess.com"]
[Source "ChessBase"]
[SourceQuality "1"]
[TimeControl "900+10"]

1. d4 {[%emt 0:00:00]} e6 {[%emt 0:00:00]} 2. c4 {[%emt 0:00:00]} Nf6 {[%emt 0:00:00]} 3. g3 {[%emt 0:00:03]} Bb4+ {[%emt 0:00:00]} 4. Bd2 {[%emt 0:00:04]} Qe7 {[%emt 0:00:00]} 5. Bg2 {[%emt 0:00:06]} O-O {[%emt 0:00:00]} 6. Nf3 {[%emt 0:00:10]} Bxd2+ {[%emt 0:00:00]} 7. Nbxd2 {[%emt 0:00:02]} d6 {[%emt 0:00:01]} 8. Qc2 {[%emt 0:00:10]} e5 {[%emt 0:00:03]} 9. O-O {[%emt 0:00:28]} c6 {[%emt 0:00:10]} 10. e3 {[%emt 0:00:20]} Bg4 {[%emt 0:00:02]} 11. Rac1 {[%emt 0:00:34]} Re8 {[%emt 0:00:17]} 12. c5 {[%emt 0:00:32]} dxc5 {[%emt 0:00:16]} 13. Qxc5 {[%emt 0:02:22]} Qxc5 {[%emt 0:00:05]} 14. Rxc5 {[%emt 0:00:06]} Nbd7 {[%emt 0:00:07]} 15. Rc3 {[%emt 0:00:47]} exd4 {[%emt 0:00:52]} 16. Nxd4 {[%emt 0:00:14]} Rad8 {[%emt 0:00:00]} 17. h3 {[%emt 0:01:18]} Bh5 {[%emt 0:00:08]} 18. Nc4 {[%emt 0:00:36]} Nb6 {[%emt 0:01:57]} 19. Nxb6 {[%emt 0:01:03]} axb6 {[%emt 0:00:00]} 20. Rb3 {[%emt 0:00:43]} Nd7 {[%emt 0:00:03]} 21. Nf5 {[%emt 0:00:29]} Ra8 {[%emt 0:00:00]} 22. Nd6 {[%emt 0:00:35]} Reb8 {[%emt 0:00:12]} 23. a3 {[%emt 0:01:30]} b5 {[%emt 0:00:09]} 24. Rc1 {[%emt 0:00:31]} f6 {[%emt 0:00:19]} 25. Rd3 {[%emt 0:00:33]} Ne5 {[%emt 0:00:01]} 26. Rdc3 {[%emt 0:00:38]} Bf7 {[%emt 0:00:17]} 27. Bf1 {[%emt 0:01:29]} Bd5 {[%emt 0:00:07]} 28. f4 {[%emt 0:00:21]} Nf7 {[%emt 0:00:41]} 29. Nxf7 {[%emt 0:00:21]} Kxf7 {[%emt 0:00:01]} 30. Kf2 {[%emt 0:00:02]} Ra4 {[%emt 0:00:07]} 31. Bg2 {[%emt 0:00:10]} Bxg2 {[%emt 0:00:05]} 32. Kxg2 {[%emt 0:00:01]} Rd8 {[%emt 0:00:01]} 33. R1c2 {[%emt 0:00:22]} b4 {[%emt 0:00:18]} 34. Rb3 {[%emt 0:00:15]} Rd6 {[%emt 0:01:10]} 35. Rxb4 {[%emt 0:00:15]} Rxb4 {[%emt 0:00:01]} 36. axb4 b5 37. Kf3 {[%emt 0:00:06]} Ke6 {[%emt 0:00:05]} 38. Ke2 {[%emt 0:00:49]} Ke7 {[%emt 0:00:05]} 39. Rd2 {[%emt 0:00:10]} Re6 {[%emt 0:00:01]} 40. Kf3 {[%emt 0:00:05]} f5 {[%emt 0:00:00]} 41. g4 {[%emt 0:00:14]} fxg4+ {[%emt 0:00:23]} 42. hxg4 {[%emt 0:00:01]} Rh6 {[%emt 0:00:02]} 43. g5 {[%emt 0:00:20]} Rh3+ {[%emt 0:00:09]} 44. Ke4 {[%emt 0:00:01]} g6 {[%emt 0:00:00]} 45. Kd4 {[%emt 0:00:24]} Kd6 {[%emt 0:00:04]} 46. e4 {[%emt 0:00:17]} Rb3 {[%emt 0:00:12]} 47. e5+ {[%emt 0:00:15]} Kc7 {[%emt 0:00:06]} 48. Rh2 {[%emt 0:01:13]} Rxb4+ {[%emt 0:00:01]} 49. Ke3 {[%emt 0:00:12]} Rb3+ {[%emt 0:00:00]} 50. Ke4 {[%emt 0:00:01]} Rb4+ {[%emt 0:00:01]} 51. Kf3 {[%emt 0:00:03]} Kd7 {[%emt 0:00:07]} 52. Rxh7+ Ke6 53. Rc7 {[%emt 0:00:42]} Rxb2 {[%emt 0:00:36]} 54. Rxc6+ {[%emt 0:00:04]} Kf7 {[%emt 0:00:00]} 55. Rf6+ {[%emt 0:00:03]} Kg7 {[%emt 0:00:01]} 56. Rb6 {[%emt 0:00:05]} Kf7 {[%emt 0:00:18]} 57. Ke4 {[%emt 0:00:09]} Rb4+ {[%emt 0:00:02]} 58. Kd5 {[%emt 0:00:13]} Rxf4 {[%emt 0:00:08]} 59. Rf6+ {[%emt 0:00:01]} Rxf6 {[%emt 0:00:13]} 60. exf6 {[%emt 0:00:01]} Kf8 {[%emt 0:00:42]} 61. Kc5 {[%emt 0:00:02]} Kf7 {[%emt 0:00:01]} 62. Kxb5 {[%emt 0:00:01]} Kf8 {[%emt 0:00:03]} 63. Kc6 {[%emt 0:00:04]} Kf7 {[%emt 0:00:02]} 64. Kd7 {[%emt 0:00:01]} Kf8 {[%emt 0:00:00]} 65. Ke6 {[%emt 0:00:02]} Ke8 {[%emt 0:00:01]} 66. Kd6 {[%emt 0:00:14]} Kf7 {[%emt 0:00:01]} 67. Kd7 Kf8 68. Ke6 {[%emt 0:01:25]} Ke8 {[%emt 0:00:01]} 69. Ke5 {[%emt 0:00:07]} Kf7 {[%emt 0:00:01]} 70. Kd5 {[%emt 0:00:32]} Kf8 71. Ke4 {[%emt 0:00:16]} Kf7 {[%emt 0:00:02]} 72. Kf4 {[%emt 0:00:05]} Ke6 {[%emt 0:00:04]} 73. Ke4 {[%emt 0:00:01]} Kf7 {[%emt 0:00:01]} 74. Ke5 {[%emt 0:00:05]} Kf8 {[%emt 0:00:01]} 75. Kd5 {[%emt 0:00:13]} Kf7 {[%emt 0:00:00]} 76. Kd6 {[%emt 0:00:01]} Kf8 {[%emt 0:00:01]} 77. Ke6 {[%emt 0:00:03]} Ke8 {[%emt 0:00:00]} 78. Kd6 {[%emt 0:01:33]} Kf7 {[%emt 0:00:01]} 79. Kd7 {[%emt 0:00:00]} Kf8 {[%emt 0:00:00]} 80. f7 {[%emt 0:00:22]} Kxf7 {[%emt 0:00:03]} 81. Kd6 {[%emt 0:00:01]} Kg8 {[%emt 0:00:04]} 82. Ke6 {[%emt 0:00:02]} Kg7 {[%emt 0:00:01]} 83. Ke7 {[%emt 0:00:01]} Kg8 {[%emt 0:00:07]} 84. Kf6 Kh7 85. Kf7 {[%emt 0:00:03]} Kh8 {[%emt 0:00:00]} 86. Kxg6 {[%emt 0:00:02]} Kg8 {[%emt 0:00:00]} 87. Kh6 {[%emt 0:00:07]} Kh8 88. g6 {[%emt 0:00:08]} Kg8 {[%emt 0:00:03]} 89. g7 1-0

[Event "29th Czech Open-Rapid 2018"]
[Site "Pardubice"]
[Date "2018.07.19"]
[Round "6"]
[White "Fiala, Milan"]
[Black "Gschwendtner, Stanislav"]
[Result "1-0"]
[ECO "D83"]
[WhiteElo "1885"]
[BlackElo "1940"]
[Annotator "NA"]
[PlyCount "71"]
[EventDate "2018.07.18"]
[EventType "swiss"]
[EventCountry "CZE"]
[SourceTitle "playchess.com"]
[Source "ChessBase"]
[SourceQuality "1"]
[TimeControl "900+10"]

1. d4 {[%emt 0:00:00]} Nf6 {[%emt 0:00:00]} 2. c4 {[%emt 0:00:00]} g6 {[%emt 0:00:00]} 3. Nc3 {[%emt 0:00:00]} d5 {[%emt 0:00:09]} 4. Bf4 {[%emt 0:00:00]} Bg7 {[%emt 0:00:05]} 5. e3 {[%emt 0:00:00]} O-O {[%emt 0:00:04]} 6. Rc1 {[%emt 0:00:24]} Be6 {[%emt 0:00:07]} 7. cxd5 {[%emt 0:00:51]} Nxd5 {[%emt 0:00:02]} 8. Nxd5 {[%emt 0:01:23]} Bxd5 {[%emt 0:00:11]} 9. Bxc7 {[%emt 0:00:24]} Qd7 {[%emt 0:00:03]} 10. Bxb8 {[%emt 0:02:09]} Raxb8 {[%emt 0:00:04]} 11. b3 {[%emt 0:00:11]} e5 {[%emt 0:00:07]} 12. dxe5 {[%emt 0:00:26]} Bxe5 {[%emt 0:00:03]} 13. Nf3 {[%emt 0:00:12]} Bxf3 {[%emt 0:01:20]} 14. Qxd7 {[%emt 0:01:29]} Bc6 {[%emt 0:00:17]} 15. Qh3 {[%emt 0:02:03]} Bb2 {[%emt 0:00:09]} 16. Rc2 {[%emt 0:00:19]} Ba3 {[%emt 0:00:16]} 17. Bc4 {[%emt 0:01:03]} Be4 {[%emt 0:00:03]} 18. Rd2 {[%emt 0:01:38]} Bb4 {[%emt 0:00:05]} 19. Ke2 {[%emt 0:00:37]} b5 {[%emt 0:00:04]} 20. Rd4 {[%emt 0:00:39]} Bf5 {[%emt 0:00:06]} 21. g4 {[%emt 0:00:10]} Bc8 {[%emt 0:00:45]} 22. Bxf7+ {[%emt 0:00:10]} Rxf7 {[%emt 0:00:02]} 23. Rxb4 {[%emt 0:00:02]} a5 {[%emt 0:00:06]} 24. Rd4 {[%emt 0:00:02]} Bb7 25. Rc1 {[%emt 0:00:15]} Rbf8 {[%emt 0:00:05]} 26. f4 {[%emt 0:00:08]} b4 {[%emt 0:00:06]} 27. Rc5 {[%emt 0:00:13]} Re8 {[%emt 0:00:26]} 28. Rxa5 {[%emt 0:00:29]} Rc7 {[%emt 0:00:03]} 29. Re5 {[%emt 0:00:53]} Rec8 {[%emt 0:00:11]} 30. Rd2 {[%emt 0:00:09]} Rc1 {[%emt 0:00:10]} 31. Re7 {[%emt 0:00:14]} Ba6+ {[%emt 0:00:07]} 32. Kf2 {[%emt 0:00:54]} h5 {[%emt 0:01:35]} 33. gxh5 {[%emt 0:00:07]} Kf8 {[%emt 0:00:42]} 34. Red7 {[%emt 0:00:47]} R1c2 {[%emt 0:00:26]} 35. Qe6 {[%emt 0:00:30]} Rxd2+ {[%emt 0:00:09]} 36. Rxd2 {[%emt 0:00:02]} 1-0

[Event "29th Czech Open-Rapid 2018"]
[Site "Pardubice"]
[Date "2018.07.19"]
[Round "6"]
[White "Ludvik, Tomas"]
[Black "Pacl, Vaclav"]
[Result "1/2-1/2"]
[ECO "A56"]
[WhiteElo "1850"]
[BlackElo "2077"]
[Annotator "NA"]
[PlyCount "127"]
[EventDate "2018.07.18"]
[EventType "swiss"]
[EventCountry "CZE"]
[SourceTitle "playchess.com"]
[Source "ChessBase"]
[SourceQuality "1"]
[TimeControl "900+10"]

1. d4 {[%emt 0:00:00]} Nf6 {[%emt 0:00:00]} 2. c4 {[%emt 0:00:00]} c5 {[%emt 0:00:00]} 3. d5 {[%emt 0:00:00]} g6 {[%emt 0:00:00]} 4. Nc3 {[%emt 0:00:00]} d6 {[%emt 0:00:00]} 5. Nf3 {[%emt 0:00:01]} Bg7 {[%emt 0:00:00]} 6. h3 {[%emt 0:00:41]} O-O {[%emt 0:00:02]} 7. Bf4 {[%emt 0:00:23]} Na6 {[%emt 0:00:07]} 8. e4 {[%emt 0:01:10]} Nc7 {[%emt 0:00:01]} 9. Be2 {[%emt 0:00:12]} a6 {[%emt 0:00:06]} 10. a4 {[%emt 0:00:02]} b6 {[%emt 0:00:01]} 11. O-O {[%emt 0:00:04]} Rb8 {[%emt 0:00:13]} 12. Re1 {[%emt 0:00:30]} Nd7 {[%emt 0:00:27]} 13. Bh2 {[%emt 0:00:36]} Ne5 {[%emt 0:01:08]} 14. Nd2 {[%emt 0:00:11]} f5 {[%emt 0:00:01]} 15. f4 {[%emt 0:00:14]} Nf7 {[%emt 0:00:01]} 16. Bd3 {[%emt 0:00:54]} e6 {[%emt 0:00:27]} 17. exf5 {[%emt 0:03:42]} gxf5 {[%emt 0:00:03]} 18. Qh5 {[%emt 0:01:55]} Qf6 {[%emt 0:00:15]} 19. Nf3 {[%emt 0:02:19]} exd5 {[%emt 0:01:43]} 20. cxd5 {[%emt 0:00:04]} Bd7 {[%emt 0:01:56]} 21. Bg3 {[%emt 0:00:22]} Rfe8 {[%emt 0:01:38]} 22. Bf2 {[%emt 0:01:10]} Bf8 {[%emt 0:04:08]} 23. Nh4 {[%emt 0:01:16]} Nh6 {[%emt 0:00:50]} 24. Qg5+ {[%emt 0:01:12]} Qg7 {[%emt 0:00:04]} 25. Qh5 {[%emt 0:01:54]} Qf6 {[%emt 0:02:17]} 26. Qg5+ {[%emt 0:00:01]} Bg7 {[%emt 0:00:01]} 27. Kh2 {[%emt 0:00:26]} Rxe1 {[%emt 0:01:12]} 28. Rxe1 {[%emt 0:00:01]} Rf8 {[%emt 0:00:01]} 29. Re7 {[%emt 0:00:13]} Rf7 {[%emt 0:00:01]} 30. Rxf7 {[%emt 0:00:08]} Kxf7 {[%emt 0:00:07]} 31. Qh5+ {[%emt 0:00:04]} Kg8 {[%emt 0:00:04]} 32. Qg5 {[%emt 0:00:16]} b5 {[%emt 0:00:04]} 33. axb5 {[%emt 0:00:02]} axb5 {[%emt 0:00:01]} 34. Ne2 {[%emt 0:00:20]} Nxd5 {[%emt 0:00:10]} 35. Ng3 {[%emt 0:00:09]} Ne7 {[%emt 0:00:14]} 36. b3 {[%emt 0:00:07]} Be6 {[%emt 0:00:49]} 37. Nh5 {[%emt 0:00:09]} Qxg5 {[%emt 0:00:09]} 38. fxg5 {[%emt 0:00:01]} Be5+ {[%emt 0:00:01]} 39. Kg1 {[%emt 0:00:01]} Nf7 {[%emt 0:00:10]} 40. Nf6+ {[%emt 0:00:02]} Kg7 {[%emt 0:00:13]} 41. Nh5+ {[%emt 0:00:04]} Kh8 {[%emt 0:00:02]} 42. Bc2 {[%emt 0:00:34]} c4 {[%emt 0:00:04]} 43. bxc4 {[%emt 0:00:07]} bxc4 {[%emt 0:00:00]} 44. Nf3 {[%emt 0:00:20]} Ng6 {[%emt 0:00:24]} 45. Ng3 {[%emt 0:00:12]} Ne7 {[%emt 0:00:34]} 46. Kf1 {[%emt 0:00:11]} Kg7 {[%emt 0:00:08]} 47. Nh5+ {[%emt 0:00:14]} Kg6 {[%emt 0:00:01]} 48. g4 {[%emt 0:00:14]} Nxg5 {[%emt 0:00:15]} 49. Nxe5+ {[%emt 0:00:01]} dxe5 {[%emt 0:00:07]} 50. Kg2 {[%emt 0:00:18]} e4 {[%emt 0:00:12]} 51. Nf4+ {[%emt 0:00:02]} Kf7 {[%emt 0:00:09]} 52. h4 {[%emt 0:00:18]} Nf3 {[%emt 0:00:11]} 53. Nxe6 {[%emt 0:00:11]} Kxe6 {[%emt 0:00:02]} 54. gxf5+ {[%emt 0:00:05]} Kxf5 {[%emt 0:00:06]} 55. Kf1 {[%emt 0:00:14]} Nd5 {[%emt 0:00:03]} 56. Ke2 {[%emt 0:00:07]} Kf4 {[%emt 0:00:04]} 57. Kf1 {[%emt 0:00:15]} e3 {[%emt 0:00:04]} 58. Be1 {[%emt 0:00:06]} Nd4 {[%emt 0:00:05]} 59. Bxh7 {[%emt 0:00:01]} Kf3 {[%emt 0:00:14]} 60. Bg8 {[%emt 0:00:16]} e2+ {[%emt 0:00:11]} 61. Kg1 {[%emt 0:00:00]} Ne3 {[%emt 0:00:01]} 62. h5 {[%emt 0:00:22]} c3 {[%emt 0:00:07]} 63. Bxc3 {[%emt 0:00:05]} Ndf5 {[%emt 0:00:13]} 64. Bd5+ 1/2-1/2